Cogmind - Beta 13 *** ADVENTURER MODE // 2024.05.26 @ 19:37:00 Player: Blade Result: Core destroyed Performance ------------- Evolutions (1) 500 Regions Visited (2) 400 Robots Destroyed (77) 385 Value Destroyed (1821) 1821 Prototype IDs (0) 0 Alien Tech Used (0) 0 Bonus (597) 597 TOTAL SCORE: 3703 Bonus ------- High Alert Combat Kills 597 Cogmind --------- Core Integrity 0/400 Matter 94/300 Energy 99/100 System Corruption 3% Temperature Critical (624) Movement Treading (160) Location -9/Materials Parts ------- > --- POWER (1) -------- (None) > --- PROPULSION (2) --- Light Treads Light Treads > --- UTILITY (4) ------ Small Storage Unit > --- WEAPON (2) ------- Rocket Launcher Mini Grenade Launcher > --- INVENTORY (8) ---- Ion Engine Light Treads Light Treads Assault Rifle Mini Grenade Launcher Mini Grenade Launcher Mini Grenade Launcher Peak State ------------ > --- POWER ------------ Light Nuclear Core > --- PROPULSION ------- Light Treads Light Treads > --- UTILITY ---------- Small Storage Unit Light Armor Plating Light Armor Plating > --- WEAPON ----------- Rocket Launcher Mini Grenade Launcher > --- INVENTORY -------- Ion Engine Light Treads Light Treads Assault Rifle Mini Grenade Launcher Mini Grenade Launcher Mini Grenade Launcher [Rating: 13] Favorites ----------- Power Ion Engine Engine Ion Engine Power Core Light Nuclear Core Propulsion Light Treads Treads Light Treads Leg Aluminum Leg Utility Small Storage Unit Storage Small Storage Unit Protection Light Armor Plating Weapon Rocket Launcher Energy Gun EM Pulse Gun Ballistic Gun Assault Rifle Launcher Rocket Launcher Build | -11 -10 -9 ------- Run | Yrd Mat Mat Slots Evolved 2 | . . 2 Power . | . . . Propulsion . | . . . Utility 2 | . . 2 Weapon . | . . . Parts Attached 26 | . . 26 Power 2 | . . 2 Engine 1 | . . 1 Core 1 | . . 1 Reactor . | . . . Propulsion 10 | . . 10 Treads 8 | . . 8 Leg 2 | . . 2 Wheel . | . . . Hover . | . . . Flight . | . . . Utility 3 | . . 3 Device . | . . . Storage . | . . . Processor . | . . . Hackware . | . . . Protection 3 | . . 3 Artifact . | . . . Weapon 11 | . . 11 Energy Gun 3 | . . 3 Energy Cannon . | . . . Ballistic Gun 1 | . . 1 Ballistic Cannon . | . . . Launcher 7 | . . 7 Special Weapon . | . . . Impact Weapon . | . . . Slashing Weapon . | . . . Piercing Weapon . | . . . Special Melee Weapon . | . . . Unidentified Prototypes . | . . . Parts Lost 6 | . . 6 Power 1 | . . 1 Propulsion 2 | . . 2 Utility 1 | . . 1 Weapon 2 | . . 2 Highest Loss Streak 5 | . . 5 To Critical Strikes . | . . . Average Slot Usage (%) 72 | . 85 71 Engine 6 | . 14 6 Core 3 | . . 3 Treads 20 | . . 21 Leg 2 | . 28 . Storage 11 | . 14 11 Protection 7 | . . 7 Energy Gun 2 | . 28 . Launcher 18 | . . 20 Naked Turns . | . . . Heaviest Build 21 | 14 14 21 Greatest Support 40 | 20 20 40 Greatest Overweight (x) 2 | . . 2 Average Overweight (x) . | . . . Largest Inventory Capacity 8 | 8 8 8 Average Capacity 8 | 8 8 8 Most Carried 8 | 6 8 8 Average Carried 7 | 6 7 7 Final Capacity 8 | 8 8 8 Final Carried 8 | 6 8 7 Class Distribution -------------------- 71% | Mutant 28% | Scavenger-Mutant Dominant Class ---------------- Mutant | -10/Materials Mutant | -9/Materials Resources | -11 -10 -9 ----------- Run | Yrd Mat Mat Matter Collected 1168 | 197 . 971 Remotely . | . . . Salvage Created 1646 | . 169 1477 Parts 138 | . 10 128 Haulers Intercepted 2 | . . 2 Recyclers Shooed 3 | . . 3 Parts Field Recycled . | . . . Retrieved Matter . | . . . Parts Self-Destructed . | . . . Prevented . | . . . Kills | -11 -10 -9 ------- Run | Yrd Mat Mat Combat Hostiles Destroyed 54 | . 3 51 Guns 9 | . 3 6 AOE 45 | . . 45 Classes Destroyed 14 | . 3 11 Worker 5 | . 1 4 Builder 6 | . . 6 Tunneler 1 | . . 1 Hauler 2 | . . 2 Recycler 4 | . . 4 Mechanic 1 | . . 1 Operator 1 | . . 1 Watcher 4 | . 1 3 Swarmer 17 | . . 17 Grunt 26 | . 3 23 Brawler 2 | . . 2 Duelist 1 | . . 1 Protector 2 | . . 2 Sentry 6 | . . 6 Best Kill Streak 13 | . 2 13 Combat Bots Only 6 | . 2 6 Max Kills in Single Turn 5 | . 1 5 Gunslinging . | . . . Exploded 5 | . . 5 Melee . | . . . Uniques/NPCs Destroyed . | . . . Combat | -11 -10 -9 -------- Run | Yrd Mat Mat Hostile Shots Fired 162 | . 6 156 Missed 62 | . 4 58 Damage Taken 1261 | . 23 1238 Core 400 | . . 400 Absorbed by Shields . | . . . Ignored by Resistances 345 | . 7 338 Core Remaining (%) 100 | 100 100 . Volleys Fired 80 | . 10 70 Largest 2 | . 2 2 Hottest 90 | . 90 66 Shots Fired 122 | . 20 102 Gun 40 | . 20 20 Cannon . | . . . Launcher 82 | . . 82 Special . | . . . Kinetic 8 | . . 8 Thermal 10 | . 10 . Explosive 82 | . . 82 Electromagnetic 22 | . 10 12 Robot Hit Streak 17 | . 7 17 Robot Miss Streak 2 | . 2 2 Penetration Max . | . . . Secondary Targets . | . . . Shots Hit Robots 73 | . 14 59 Core Hits 122 | . 9 113 Critical Kills . | . . . Critical Parts Destroyed . | . . . Critical Strikes . | . . . Melee Attacks . | . . . Impact . | . . . Slashing . | . . . Piercing . | . . . Sneak Attacks . | . . . Combat Hostiles . | . . . Follow-up Attacks . | . . . Damage Inflicted 5176 | . 216 4960 Guns 392 | . 201 191 Cannons . | . . . Explosions 4734 | . . 4734 Melee . | . . . Ramming 50 | . 15 35 Kinetic 78 | . . 78 Thermal 222 | . 62 160 Explosive 4479 | . . 4479 Electromagnetic 347 | . 139 208 Impact . | . . . Slashing . | . . . Piercing . | . . . Highest Corruption 3 | . . 3 Average Corruption 2 | . . 2 Corruption Purged . | . . . Corruption Blocked . | . . . Effects 28 | . . 28 Message Errors 8 | . . 8 Matter Fused 6 | . . 6 Heat Flow Errors 4 | . . 4 Energy Discharges 7 | . . 7 Parts Rejected 1 | . . 1 Data Loss (minor) 2 | . . 2 Overload Shots . | . . . Overflow Damage 164 | . . 164 Projectiles . | . . . Explosions 164 | . . 164 Melee . | . . . Knockbacks . | . . . Impact . | . . . Kinetic . | . . . Secondary . | . . . Self-Inflicted Damage 201 | . . 201 Shots 10 | . . 10 Rammed 11 | . . 11 Targets Rammed 14 | . 2 12 Kicked 2 | . 2 . Crushed 1 | . . 1 Highest Temperature 624 | . 90 624 Average Temperature 134 | . 36 145 Received Heat Transfer 477 | . 15 462 Effects 14 | . . 14 Energy Bleed 3 | . . 3 Interference 1 | . . 1 Matter Decay 1 | . . 1 Short Circuit 2 | . . 2 Damage (minor) 3 | . . 3 Damage (major) 2 | . . 2 Damage (core) 2 | . . 2 Siege Activations . | . . . Robots Corrupted . | . . . Combat Hostiles . | . . . Parts Fried 1 | . . 1 Impact Corruptions . | . . . Robots Melted . | . . . Combat Hostiles . | . . . Parts Melted . | . . . Heat Transferred 285 | . 185 100 Parts Sabotaged . | . . . Parts Stolen . | . . . Parts Stripped . | . . . Power Chain Reactions 1 | . . 1 Alert | -11 -10 -9 ------- Run | Yrd Mat Mat Peak Influence 1260 | . 146 1260 Initial 52 | . . 52 Average 796 | . 63 859 Maximum Alert Level 4 | . . 4 Low Security (%) 11 | 100 100 3 Level 1 14 | . . 15 Level 2 7 | . . 8 Level 3 41 | . . 45 Level 4 25 | . . 27 Level 5 . | . . . High Security . | . . . Max Security . | . . . Sterilizations 1 | . . 1 Squads Dispatched 12 | . 2 10 Investigation 6 | . 2 4 Extermination . | . . . Reinforcement 3 | . . 3 Assault 3 | . . 3 Garrison . | . . . Intercept . | . . . Searches Triggered . | . . . Construction Impeded 1 | . . 1 Haulers Reinforced . | . . . Active Scanning Responses . | . . . Cargo Convoy Interrupts . | . . . Stealth | -11 -10 -9 --------- Run | Yrd Mat Mat Distress Signals 1 | . . 1 Communications Jammed . | . . . Distress Signals . | . . . Times Spotted 69 | . 7 62 Peak Tracking Total 9 | . 2 9 Tactical Retreats 4 | . 1 3 Traps | -11 -10 -9 ------- Run | Yrd Mat Mat Traps Triggered 2 | . 2 . Indirectly . | . . . Trap Hack Attempts . | . . . Triggered . | . . . Disarmed . | . . . Reprogrammed . | . . . Reused . | . . . Traps Extracted . | . . . Installed . | . . . Triggered . | . . . Machines | -11 -10 -9 ---------- Run | Yrd Mat Mat Machines Disabled 16 | . . 16 Max in Single Turn 2 | . . 2 Machines Repaired . | . . . Machines Dismantled . | . . . Machines Sabotaged . | . . . Overloaded Fab Kills . | . . . Hacking | -11 -10 -9 --------- Run | Yrd Mat Mat Machines Accessed 6 | . 1 5 Terminals 6 | . 1 5 Fabricators . | . . . Repair Stations . | . . . Recycling Units . | . . . Scanalyzers . | . . . Garrison Access . | . . . Total Hacks 22 | . 2 20 Successful 13 | . 1 12 Failed 9 | . 1 8 Catastrophic . | . . . Database Lockouts . | . . . Manual 2 | . 2 . Terminals 22 | . 2 20 Fabricators . | . . . Repair Stations . | . . . Recycling Units . | . . . Scanalyzers . | . . . Garrison Access . | . . . Terminal Hacks 13 | . 1 12 Record 1 | . . 1 Robot Analysis 1 | . . 1 Level Access Points 1 | . 1 . Repair Station Index 1 | . . 1 Alert Level 2 | . . 2 Maintenance Status 1 | . . 1 Transport Status 1 | . . 1 Investigation Status 1 | . . 1 Reinforcement Status 1 | . . 1 Recall Reinforcements 1 | . . 1 Hauler Manifests 1 | . . 1 Registered Prototypes 1 | . . 1 Fabricator Hacks . | . . . Repair Station Hacks . | . . . Recycling Unit Hacks . | . . . Scanalyzer . | . . . Garrison Access Hacks . | . . . Unauthorized Hacks . | . . . Terminals . | . . . Fabricators . | . . . Repair Stations . | . . . Recycling Units . | . . . Scanalyzers . | . . . Garrison Access . | . . . Data Cores Recovered . | . . . Used . | . . . Hacking Detections 5 | . . 5 Full Trace Events 5 | . . 5 Feedback Events 2 | . . 2 Corruption 2 | . . 2 Feedback Blocked . | . . . Robot Schematics Acquired . | . . . Robots Built . | . . . Authchips . | . . . Time . | . . . Total Robot Build Rating . | . . . Part Schematics Acquired . | . . . Parts Built . | . . . Authchips . | . . . Time . | . . . Total Part Build Rating . | . . . Parts Repaired . | . . . Time . | . . . Parts Recycled . | . . . Recycled Matter . | . . . Retrieved Matter . | . . . Retrieved Components . | . . . Parts Scanalyzed . | . . . Part Schematics Acquired . | . . . Parts Damaged . | . . . Bothacking | -11 -10 -9 ------------ Run | Yrd Mat Mat Used RIF Installer . | . . . Robots Hacked . | . . . Non-combat . | . . . Combat . | . . . Robot Hacks Applied . | . . . Relay Couplers Released . | . . . Fabnet Peak Effective % . | . . . Robots Rewired . | . . . Allies Hacked . | . . . Hacks Repelled . | . . . Allies | -11 -10 -9 -------- Run | Yrd Mat Mat Total Allies . | . . . Largest Group . | . . . Highest-Rated Group . | . . . Highest-Rated Ally . | . . . Total Orders . | . . . Ally Attacks . | . . . Total Damage . | . . . Kills . | . . . Allies Corrupted . | . . . Allies Melted . | . . . Intel | -11 -10 -9 ------- Run | Yrd Mat Mat Robot Analysis Total 1 | . . 1 Derelict Logs Recovered . | . . . Drone Launches . | . . . Drone Recoveries . | . . . Exploration | -11 -10 -9 ------------- Run | Yrd Mat Mat Turns Passed 3095 | 2 242 2851 Spaces Moved 1449 | 2 174 1273 Core 5 | . . 5 Treads 1266 | . . 1266 Legs 178 | 2 174 2 Wheels . | . . . Hover . | . . . Flight . | . . . Fastest Speed 120 | 120 120 150 Average Speed 155 | 120 120 160 Slowest Speed 190 | 120 120 190 Overloaded Moves . | . . . Propulsion Burnouts . | . . . Robots Hopped . | . . . Cave-ins Triggered . | . . . Exploration Rate (%) 34 | 2 35 65 Regions Visited 2 Branch Regions . Pre-discovered Areas . | . . . Known Exits Taken 1 | . 1 . Unknown Exits Taken 1 | 1 . . Scrap Searched . | . . . Spaces Dug . | . . . Terrain Destroyed 560 | . . 560 Melee . | . . . Projectile . | . . . AOE 560 | . . 560 Terrain Rammed . | . . . Walls Destroyed . | . . . Machines Disabled . | . . . Actions | -11 -10 -9 --------- Run | Yrd Mat Mat Total 2163 | 1 187 1975 Wait 576 | . . 576 Move 1447 | 1 173 1273 Hop . | . . . Pick Up 6 | . 2 4 Fast Attach 11 | . . 11 Attach 3 | . . 3 Detach . | . . . Swap 12 | . . 12 Drop 14 | . . 14 Fire 80 | . 10 70 Melee . | . . . Ram . | . . . Kick 2 | . 2 . Crush 12 | . . 12 Escape Stasis . | . . . Rewire . | . . . Trap . | . . . Miscellaneous . | . . . Route ------- -11/Scrapyard -10/Materials (discovered 4 exits: *Mat x3 / [*Min]) -9/Materials (discovered 3 exits: [*Mat x3]) History --------- Turn | Location | Event 1 | -11/Scrapyard | Discovered new exit (range 1) 3 | -11/Scrapyard | Entered Materials 38 | -10/Materials | Identified exit to Materials 61 | -10/Materials | Discovered new exit (range 12) 245 | -10/Materials | Entered another Materials area 245 | -9/Materials | Evolved 2 slots: Utility x2 308 | -9/Materials | Build established: Mutant 851 | -9/Materials | Discovered new exit (range 15) 1045 | -9/Materials | First assault squad dispatched 1643 | -9/Materials | Discovered new exit (range 15) 1871 | -9/Materials | Core integrity fell below 50% 1918 | -9/Materials | Lost 5 parts (1p2n2w) 2212 | -9/Materials | Build established: Scavenger-Mutant 2271 | -9/Materials | Discovered new exit (range 12) 2320 | -9/Materials | Sterilization system engaged 2320 | -9/Materials | Non-combat units ordered to evacuate 2420 | -9/Materials | Combat units ordered to evacuate 2620 | -9/Materials | Ambient heat levels rising (+10) 2770 | -9/Materials | Ambient heat levels rising (+10) 2920 | -9/Materials | Ambient heat levels rising (+10) 3070 | -9/Materials | Ambient heat levels rising (+10) 3090 | -9/Materials | Core integrity fell below 20% 3096 | -9/Materials | Build established: Mutant 3097 | -9/Materials | Core destroyed Last Messages --------------- 03070_ ALERT: Ambient heat levels +10. 03072_ Mni. Grenade Launcher broken. 03072_ Overheating: Short circuit. 03072_ Y#AA8H#ZX|#DW#R8CY5U2HAUF=#A 03073_ Overheating: Energy bleed (-20). 03080_ Overheating: System interference. 03080_ Rocket Launcher temporarily disabled. 03082_ Overheating: Broken Mni. Grenade Launcher damaged (-26). 03087_ Overheating: Broken Mni. Grenade Launcher damaged (-9). 03087_ Overheating: Lgt. Treads damaged (-62). 03089_ Overheating: Matter decay (-29). 03090_ Overheating: Core damaged (-56). 03094_ Lgt. Treads broken. 03094_ Overheating: Short circuit. 03095_ Overheating: Energy bleed (-11). 03096_ Overheating: Broken Mni. Grenade Launcher damaged (-8). 03097_ Overheating: Core damaged (-48). Map ----- +----------------------------------------------------+ | ???????????# | | ???????????# | | ???????????# ########### ######### | | ##?????????# ##????????# #???????# | | #?????????# " ###???????# #???????# | | #?????????# "" # #???????# #???????# | | #?????????# "" # #???????# #???????# | | #?????????# "" ###???????# #???????# | | #?????????# " ##?######## #???????# | | #??######## ##?# #???????# | | ############ ##?# #???????? | | "" #??# #???????? | | """ #??# ###+###########? | | " #??# # #? | | ####+########## " #### # """ """ """ #? | | ## ##! ## "" # # # """ """ """ #? | | ## === #! ## # """ """ """ #? | | ## = #! + #? | | # ]] ##! #### # #? | | ##]] ##! ###### #### # +##+################ | | ## * ###! #?#### ### #??????????# | | #########?####????# ## " #????????### | | #???????????????###+## """" ########## | | #???????????????# # # """ + ! | | #?????????##????# # "" # | | #?????????# ???# [ @ # " " # = | | #????????## ??# " # + %= | | #????????# ?# ######### ### | | #????????# ?# # ##########?????## ! | | #????????# #+###### #######????????# # | | #????????# # #????????## |! | | #????????# + #???????####*= | | #????????# # #???????# | | #????????# # # ## ######### | | +????????# # #### # | | # ???????# # #??# # """ [ # | | ? ??????# """ #??# # """ # | | ?????????# "Y #??# # """ ## # | | ??????????####""" #??# + # # # | | ??????+??????#### #??# # """ | | ?????? #######??# " #??# # """ | | ?????? # ?# "" #??# # """ | | ?????? # ?# T" #??# < # | | ?????# # ! # "" #??# ######### | | ?????# # | # "" #??#####???????## | | ?????# # + #???????????????####### | | ?????# # # #?????????????????????# | | ?????# # ####+#######?????????????????????? | | ?????# / ?# #?????????????????????????? | | ?????# # ] ?# """ #?????????????????????????? | +----------------------------------------------------+ Best States ------------- Heat Dissipation 28 Energy Generation 14 Energy Capacity 250 Matter Stores 300 Matter Capacity 300 Sight Range 16 Terrain Scan Density 10 Armor Coverage 300 Resistance: KI 20 Resistance: TH 20 Resistance: EX 20 Resistance: EM 20 Resistance: I 20 Resistance: S 20 Resistance: P 20 Evasion (%) 55 Recoil Reduction 2 Offensive Hacking 10 Item Schematics ----------------- None Robot Schematics ------------------ None Fabricated ------------ Nothing Alien Tech Used ----------------- None Achievements -------------- Quick And Dirty Challenges ------------ None Game ------ Seed StructuralIntegratedClaws Manual? 0 Play Time 00:17:16 Cumulative 52.2 hours Start 2024.05.26 @ 19:21:30 End 2024.05.26 @ 19:37:00 Sessions 1 Manual Loads 0 Difficulty Adventurer Special Mode None Game No. 67 Rogue 0 Adventurer 62 Explorer 5 Win Type - Total 1 Types 1/0/0/0/0/0/0/0/0 Lore% 30 Gallery% 45 Achievement% 34 Wizard Run 0 Options --------- Layout 1 ASCII 0 Keyboard 0 Movement Arrows Keybinds 0 Fullscreen 2 Font 24/Terminus Map View 50x35 Zoom Use 0% Tactical HUD 1 Map Filters NONE Filters NONE Steam 1 RUN: a17824df-83c5-4016-8b15-15fa9081d8bc